Cogmind - Beta 12 @@@ ROGUE MODE // 2023.04.09 @ 19:25:46 Player: Mr Goldstein Result: Destroyed by S-27 Virus with Autogun Performance ------------- Evolutions (5) 2500 Regions Visited (8) 1600 Robots Destroyed (0) 0 Value Destroyed (0) 0 Prototype IDs (5) 100 Alien Tech Used (0) 0 Bonus (2335) 2335 TOTAL SCORE: 6535 Bonus ------- Pacifist 1524 Follower Combat Kills 211 Met Imprinter 300 Was Imprinted 300 Cogmind --------- Core Integrity 0/1000 Matter 300/300 Energy 98/100 System Corruption 0% Temperature Cool (0) Movement Core (50) Location -5/Factory Parts ------- > --- POWER (1) -------- (None) > --- PROPULSION (2) --- (None) > --- UTILITY (12) ----- (None) > --- WEAPON (2) ------- (None) > --- INVENTORY (5) ---- Advanced Terrain Scan Processor 0b10 Decoder Chip [Generic] 0b10 Decoder Chip [Scout] Makeshift Hammer Lance Peak State ------------ > --- POWER ------------ (None) > --- PROPULSION ------- (None) > --- UTILITY ---------- Gravity Neutralizer Experimental Signal Interpreter 0b10 Decoder Chip [Generic] 0b10 Decoder Chip [Scout] Improved Light Armor Plating > --- WEAPON ----------- (None) > --- INVENTORY -------- Advanced Terrain Scan Processor 0b10 Decoder Chip [Generic] 0b10 Decoder Chip [Scout] Improved Light Armor Plating Makeshift Hammer [Rating: 29] Favorites ----------- Power None Propulsion None Utility Experimental Signal Interpreter Device Gravity Neutralizer Processor Experimental Signal Interpreter Hackware Makeshift Hacking Suite Protection Improved Light Armor Plating Weapon Makeshift Hammer Impact Weapon Makeshift Hammer Build | -11 -10 -10 -9 -9 -7 -6 -6 -5 ------- Run | Jun Mat Min Mat Min Zio Pro Fac Fac Slots Evolved 10 | . . . 2 . . . 6 2 Power . | . . . . . . . . . Propulsion . | . . . . . . . . . Utility 10 | . . . 2 . . . 6 2 Weapon . | . . . . . . . . . Parts Attached 17 | . . . 1 . 12 . 3 1 Power . | . . . . . . . . . Engine . | . . . . . . . . . Core . | . . . . . . . . . Reactor . | . . . . . . . . . Propulsion . | . . . . . . . . . Treads . | . . . . . . . . . Leg . | . . . . . . . . . Wheel . | . . . . . . . . . Hover . | . . . . . . . . . Flight . | . . . . . . . . . Utility 15 | . . . 1 . 11 . 3 . Device 2 | . . . . . . . 2 . Storage . | . . . . . . . . . Processor 7 | . . . . . 7 . . . Hackware 3 | . . . . . 3 . . . Protection 3 | . . . 1 . 1 . 1 . Artifact . | . . . . . . . . . Weapon 2 | . . . . . 1 . . 1 Energy Gun . | . . . . . . . . . Energy Cannon . | . . . . . . . . . Ballistic Gun . | . . . . . . . . . Ballistic Cannon . | . . . . . . . . . Launcher . | . . . . . . . . . Special Weapon . | . . . . . . . . . Impact Weapon 2 | . . . . . 1 . . 1 Slashing Weapon . | . . . . . . . . . Piercing Weapon . | . . . . . . . . . Special Melee Weapon . | . . . . . . . . . Unidentified Prototypes 5 | . . . . . 4 . 1 . Parts Lost 5 | . . . . . . . 4 1 Power . | . . . . . . . . . Propulsion . | . . . . . . . . . Utility 5 | . . . . . . . 4 1 Weapon . | . . . . . . . . . Highest Loss Streak 4 | . . . . . . . 4 1 To Critical Strikes . | . . . . . . . . . Average Slot Usage (%) 27 | . . . 5 11 38 44 29 7 Processor 15 | . . . . . 17 33 18 6 Hackware 5 | . . . . . 15 . . . Protection 4 | . . . 5 11 5 11 5 . Naked Turns 312 | . 69 132 79 . . . . 32 Heaviest Build 3 | . . . 3 3 3 3 3 3 Greatest Support 3 | 3 3 3 3 3 3 3 3 3 Greatest Overweight (x) . | . . . . . . . . . Average Overweight (x) . | . . . . . . . . . Largest Inventory Capacity 5 | 5 5 5 5 5 5 5 5 5 Average Capacity 5 | 5 5 5 5 5 5 5 5 5 Most Carried 5 | . 1 2 5 5 5 5 5 5 Average Carried 4 | . . 1 4 5 4 5 4 4 Final Capacity 5 | 5 5 5 5 5 5 5 5 5 Final Carried 5 | . 1 2 5 5 5 5 4 5 Class Distribution -------------------- 79% | Mutant 20% | Hacker-Mutant Dominant Class ---------------- Mutant | -10/Materials Mutant | -10/Mines Mutant | -9/Materials Mutant | -9/Mines Hacker-Mutant | -7/Zion Mutant | -6/Proximity Caves Mutant | -6/Factory Mutant | -5/Factory Resources | -11 -10 -10 -9 -9 -7 -6 -6 -5 ----------- Run | Jun Mat Min Mat Min Zio Pro Fac Fac Matter Collected 357 | 144 . 43 . . 152 11 . 7 Remotely . | . . . . . . . . . Salvage Created . | . . . . . . . . . Parts . | . . . . . . . . . Haulers Intercepted . | . . . . . . . . . Recyclers Shooed . | . . . . . . . . . Parts Field Recycled . | . . . . . . . . . Retrieved Matter . | . . . . . . . . . Parts Self-Destructed 16 | . . . . . 3 13 . . Prevented 2 | . . . . . . 2 . . Kills | -11 -10 -10 -9 -9 -7 -6 -6 -5 ------- Run | Jun Mat Min Mat Min Zio Pro Fac Fac Combat Hostiles Destroyed . | . . . . . . . . . Classes Destroyed . | . . . . . . . . . Best Kill Streak . | . . . . . . . . . Combat Bots Only . | . . . . . . . . . Max Kills in Single Turn . | . . . . . . . . . Gunslinging . | . . . . . . . . . Exploded . | . . . . . . . . . Melee . | . . . . . . . . . Uniques/NPCs Destroyed . | . . . . . . . . . Combat | -11 -10 -10 -9 -9 -7 -6 -6 -5 -------- Run | Jun Mat Min Mat Min Zio Pro Fac Fac Damage Taken 2460 | . 17 27 305 13 . 16 1058 1024 Core 1878 | . 17 27 178 . . . 656 1000 Absorbed by Shields . | . . . . . . . . . Core Remaining (%) 64 | 100 . 82 . . . 55 22 . Volleys Fired . | . . . . . . . . . Largest . | . . . . . . . . . Hottest . | . . . . . . . . . Shots Fired . | . . . . . . . . . Gun . | . . . . . . . . . Cannon . | . . . . . . . . . Launcher . | . . . . . . . . . Special . | . . . . . . . . . Kinetic . | . . . . . . . . . Thermal . | . . . . . . . . . Explosive . | . . . . . . . . . Electromagnetic . | . . . . . . . . . Robot Hit Streak . | . . . . . . . . . Robot Miss Streak . | . . . . . . . . . Penetration Max . | . . . . . . . . . Secondary Targets . | . . . . . . . . . Shots Hit Robots . | . . . . . . . . . Core Hits 2 | . . . . . . . . 2 Critical Kills . | . . . . . . . . . Critical Parts Destroyed . | . . . . . . . . . Critical Strikes . | . . . . . . . . . Melee Attacks 2 | . . . . . . . . 2 Impact 2 | . . . . . . . . 2 Slashing . | . . . . . . . . . Piercing . | . . . . . . . . . Sneak Attacks . | . . . . . . . . . Combat Hostiles . | . . . . . . . . . Follow-up Attacks . | . . . . . . . . . Damage Inflicted 48 | . . . . . . . 2 46 Guns . | . . . . . . . . . Cannons . | . . . . . . . . . Explosions . | . . . . . . . . . Melee . | . . . . . . . . . Ramming 48 | . . . . . . . 2 46 Kinetic . | . . . . . . . . . Thermal . | . . . . . . . . . Explosive . | . . . . . . . . . Electromagnetic . | . . . . . . . . . Impact . | . . . . . . . . . Slashing . | . . . . . . . . . Piercing . | . . . . . . . . . Highest Corruption 1 | . . . . . . . 1 . Average Corruption 1 | . . . . . . . 1 . Corruption Purged . | . . . . . . . . . Corruption Blocked . | . . . . . . . . . Effects 1 | . . . . . . . 1 . Data Loss (minor) 1 | . . . . . . . 1 . Overload Shots . | . . . . . . . . . Overflow Damage 8 | . . . . . . . . 8 Projectiles . | . . . . . . . . . Explosions . | . . . . . . . . . Melee 8 | . . . . . . . . 8 Knockbacks . | . . . . . . . . . Impact . | . . . . . . . . . Kinetic . | . . . . . . . . . Secondary . | . . . . . . . . . Self-Inflicted Damage 22 | . . . . . . . 1 21 Shots . | . . . . . . . . . Rammed 7 | . . . . . . . 1 6 Targets Rammed 7 | . . . . . . . 1 6 Kicked . | . . . . . . . . . Crushed . | . . . . . . . . . Highest Temperature 1 | . . . 1 . . . . . Average Temperature 1 | . . . 1 . . . . . Received Heat Transfer 288 | . 9 9 93 . . . 78 99 Siege Activations . | . . . . . . . . . Robots Corrupted . | . . . . . . . . . Combat Hostiles . | . . . . . . . . . Parts Fried . | . . . . . . . . . Impact Corruptions 1 | . . . . . . . . 1 Robots Melted . | . . . . . . . . . Combat Hostiles . | . . . . . . . . . Parts Melted . | . . . . . . . . . Heat Transferred . | . . . . . . . . . Parts Sabotaged . | . . . . . . . . . Parts Stolen . | . . . . . . . . . Parts Stripped . | . . . . . . . . . Power Chain Reactions . | . . . . . . . . . Missiles Intercepted . | . . . . . . . . . Alert | -11 -10 -10 -9 -9 -7 -6 -6 -5 ------- Run | Jun Mat Min Mat Min Zio Pro Fac Fac Peak Influence 537 | . 15 28 23 21 . . 537 531 Initial 325 | . . 5 10 6 . . 325 257 Average 214 | . 9 22 12 14 . . 389 324 Maximum Alert Level 2 | . . . . . . . 2 2 Low Security (%) 42 | 100 100 100 100 100 . . . . Level 1 41 | . . . . . . . 59 86 Level 2 16 | . . . . . . . 40 13 Level 3 . | . . . . . . . . . Level 4 . | . . . . . . . . . Level 5 . | . . . . . . . . . High Security . | . . . . . . . . . Max Security . | . . . . . . . . . Squads Dispatched 3 | . . . . . . . 1 2 Investigation 2 | . . . . . . . 1 1 Extermination . | . . . . . . . . . Reinforcement 1 | . . . . . . . . 1 Assault . | . . . . . . . . . Garrison . | . . . . . . . . . Intercept . | . . . . . . . . . Searches Triggered . | . . . . . . . . . Construction Impeded . | . . . . . . . . . Haulers Reinforced . | . . . . . . . . . Active Scanning Responses . | . . . . . . . . . Cargo Convoy Interrupts . | . . . . . . . . . Stealth | -11 -10 -10 -9 -9 -7 -6 -6 -5 --------- Run | Jun Mat Min Mat Min Zio Pro Fac Fac Distress Signals 5 | . 1 . . . . 1 2 1 Communications Jammed . | . . . . . . . . . Distress Signals . | . . . . . . . . . Times Spotted 93 | . 4 3 13 7 . 16 23 27 Peak Tracking Total 15 | . 4 3 14 14 . 7 11 15 Tactical Retreats 9 | . . . . . . 3 2 4 Traps | -11 -10 -10 -9 -9 -7 -6 -6 -5 ------- Run | Jun Mat Min Mat Min Zio Pro Fac Fac Traps Triggered 3 | . . . . . . . 1 2 Indirectly . | . . . . . . . . . Trap Hack Attempts . | . . . . . . . . . Triggered . | . . . . . . . . . Disarmed . | . . . . . . . . . Reprogrammed . | . . . . . . . . . Reused . | . . . . . . . . . Traps Extracted . | . . . . . . . . . Installed . | . . . . . . . . . Triggered . | . . . . . . . . . Machines | -11 -10 -10 -9 -9 -7 -6 -6 -5 ---------- Run | Jun Mat Min Mat Min Zio Pro Fac Fac Machines Disabled . | . . . . . . . . . Max in Single Turn . | . . . . . . . . . Machines Repaired . | . . . . . . . . . Machines Sabotaged . | . . . . . . . . . Overloaded Fab Kills . | . . . . . . . . . Hacking | -11 -10 -10 -9 -9 -7 -6 -6 -5 --------- Run | Jun Mat Min Mat Min Zio Pro Fac Fac Machines Accessed 8 | . 3 . 3 . . . 1 1 Terminals 6 | . 3 . 3 . . . . . Fabricators 2 | . . . . . . . 1 1 Repair Stations . | . . . . . . . . . Recycling Units . | . . . . . . . . . Scanalyzers . | . . . . . . . . . Garrison Access . | . . . . . . . . . Total Hacks 18 | . 4 . 11 . . . 2 1 Successful 10 | . 3 . 5 . . . 1 1 Failed 8 | . 1 . 6 . . . 1 . Catastrophic . | . . . . . . . . . Database Lockouts . | . . . . . . . . . Manual 21 | . 4 . 7 . . . 4 6 Terminals 15 | . 4 . 11 . . . . . Fabricators 3 | . . . . . . . 2 1 Repair Stations . | . . . . . . . . . Recycling Units . | . . . . . . . . . Scanalyzers . | . . . . . . . . . Garrison Access . | . . . . . . . . . Terminal Hacks 2 | . . . 2 . . . . . Robot Analysis 1 | . . . 1 . . . . . Zone Layout 1 | . . . 1 . . . . . Fabricator Hacks . | . . . . . . . . . Repair Station Hacks . | . . . . . . . . . Recycling Unit Hacks . | . . . . . . . . . Scanalyzer . | . . . . . . . . . Garrison Access Hacks . | . . . . . . . . . Unauthorized Hacks 8 | . 3 . 3 . . . 1 1 Terminals 6 | . 3 . 3 . . . . . Botnet 5 | . 2 . 3 . . . . . Operators 1 | . 1 . . . . . . . Fabricators 2 | . . . . . . . 1 1 Liberate 2 | . . . . . . . 1 1 Repair Stations . | . . . . . . . . . Recycling Units . | . . . . . . . . . Scanalyzers . | . . . . . . . . . Garrison Access . | . . . . . . . . . Data Cores Recovered . | . . . . . . . . . Used . | . . . . . . . . . Hacking Detections 7 | . 2 . 3 . . . 1 1 Full Trace Events . | . . . . . . . . . Feedback Events . | . . . . . . . . . Feedback Blocked . | . . . . . . . . . Robot Schematics Acquired . | . . . . . . . . . Robots Built . | . . . . . . . . . Authchips . | . . . . . . . . . Time . | . . . . . . . . . Total Robot Build Rating . | . . . . . . . . . Part Schematics Acquired . | . . . . . . . . . Parts Built . | . . . . . . . . . Authchips . | . . . . . . . . . Time . | . . . . . . . . . Total Part Build Rating . | . . . . . . . . . Parts Repaired . | . . . . . . . . . Time . | . . . . . . . . . Parts Recycled . | . . . . . . . . . Recycled Matter . | . . . . . . . . . Retrieved Matter . | . . . . . . . . . Retrieved Components . | . . . . . . . . . Parts Scanalyzed . | . . . . . . . . . Part Schematics Acquired . | . . . . . . . . . Parts Damaged . | . . . . . . . . . Bothacking | -11 -10 -10 -9 -9 -7 -6 -6 -5 ------------ Run | Jun Mat Min Mat Min Zio Pro Fac Fac Used RIF Installer . | . . . . . . . . . Robots Hacked . | . . . . . . . . . Non-combat . | . . . . . . . . . Combat . | . . . . . . . . . Robot Hacks Applied . | . . . . . . . . . Relay Couplers Released . | . . . . . . . . . Fabnet Peak Effective % . | . . . . . . . . . Robots Rewired 2 | . . . . . . 2 . . Allies Hacked . | . . . . . . . . . Hacks Repelled . | . . . . . . . . . Allies | -11 -10 -10 -9 -9 -7 -6 -6 -5 -------- Run | Jun Mat Min Mat Min Zio Pro Fac Fac Total Allies 10 | . . 2 . . 6 2 . . Largest Group 6 | . . 2 1 . 6 6 . . Highest-Rated Group 202 | . . 42 31 . 202 202 . . Highest-Rated Ally 39 | . . 31 31 . 39 39 . . Total Orders 2 | . . . . . . . 2 . EXPLORE 2 | . . . . . . . 2 . Ally Attacks 44 | . . 5 3 . . 36 . . Total Damage 1014 | . . 103 22 . . 889 . . Kills 14 | . . 2 . . . 12 . . Allies Corrupted . | . . . . . . . . . Allies Melted . | . . . . . . . . . Intel | -11 -10 -10 -9 -9 -7 -6 -6 -5 ------- Run | Jun Mat Min Mat Min Zio Pro Fac Fac Robot Analysis Total 1 | . . . 1 . . . . . Derelict Logs Recovered 3 | . . . . . 3 . . . Drone Launches 2 | . . . . . . . 2 . Drone Recoveries 1 | . . . . . . . 1 . Decoded 0b10 Intel 14 | . . . . . . . 11 3 Traps 8 | . . . . . . . 5 3 Items 6 | . . . . . . . 6 . Zionite Intel Received 1 | . . . . . . . . 1 Active Terminals 1 | . . . . . . . . 1 Exploration | -11 -10 -10 -9 -9 -7 -6 -6 -5 ------------- Run | Jun Mat Min Mat Min Zio Pro Fac Fac Turns Passed 1927 | 11 69 132 160 11 745 277 292 230 Spaces Moved 2996 | 23 135 189 229 21 1150 403 427 419 Core 2996 | 23 135 189 229 21 1150 403 427 419 Treads . | . . . . . . . . . Legs . | . . . . . . . . . Wheels . | . . . . . . . . . Hover . | . . . . . . . . . Flight . | . . . . . . . . . Fastest Speed 50 | 50 50 50 50 50 50 50 50 50 Average Speed 50 | 50 50 50 50 50 50 50 50 50 Slowest Speed 50 | 50 50 50 50 50 50 50 50 50 Overloaded Moves . | . . . . . . . . . Propulsion Burnouts . | . . . . . . . . . Robots Hopped . | . . . . . . . . . Cave-ins Triggered . | . . . . . . . . . Exploration Rate (%) 33 | 3 27 43 34 13 86 62 20 15 Regions Visited 8 Branch Regions 4 Pre-discovered Areas 1 | . . . . . 1 . . . Known Exits Taken 3 | . . . . . 1 1 1 . Unknown Exits Taken 5 | 1 1 1 1 1 . . . . Scrap Searched 4 | . . . . . 3 1 . . Spaces Dug 2 | . . . . . . . . 2 Terrain Destroyed 2 | . . . . . . . . 2 Melee 2 | . . . . . . . . 2 Projectile . | . . . . . . . . . AOE . | . . . . . . . . . Terrain Rammed . | . . . . . . . . . Walls Destroyed . | . . . . . . . . . Machines Disabled . | . . . . . . . . . Actions | -11 -10 -10 -9 -9 -7 -6 -6 -5 --------- Run | Jun Mat Min Mat Min Zio Pro Fac Fac Total 3413 | 22 135 225 274 20 1318 477 504 438 Wait 360 | . . 36 37 . 140 66 73 8 Move 2989 | 22 134 188 228 20 1149 402 427 419 Hop . | . . . . . . . . . Pick Up 12 | . 1 1 6 . 3 . . 1 Fast Attach 15 | . . . . . 13 . 2 . Attach 4 | . . . 1 . 1 . 1 1 Detach 2 | . . . . . 1 . . 1 Swap . | . . . . . . . . . Drop 14 | . . . 2 . 11 . 1 . Fire . | . . . . . . . . . Melee 2 | . . . . . . . . 2 Ram 6 | . . . . . . . . 6 Kick . | . . . . . . . . . Crush . | . . . . . . . . . Escape Stasis . | . . . . . . . . . Rewire 9 | . . . . . . 9 . . Trap . | . . . . . . . . . Miscellaneous . | . . . . . . . . . Route ------- -11/Junkyard -10/Materials -10/Mines -9/Materials (discovered 3 exits: [Mat] / [*Min] / [*Sto]) -9/Mines -7/Zion -6/Proximity Caves -6/Factory -5/Factory (discovered 1 exit: Ext) History --------- Turn | Location | Event 4 | -11/Junkyard | Discovered new exit (range 15) 12 | -11/Junkyard | Entered Materials 76 | -10/Materials | Discovered new exit (range 11) 81 | -10/Materials | Entered Mines 178 | -10/Mines | Discovered new exit (range 8) 213 | -10/Mines | Entered Materials 213 | -9/Materials | Accompanied by 1 ally 213 | -9/Materials | Evolved 2 slots: Utility x2 218 | -9/Materials | Led the pair of lost Derelicts to an unsafe place 313 | -9/Materials | Build established: Mutant 320 | -9/Materials | Discovered new exit (range 16) 356 | -9/Materials | Discovered new exit (range 12) 369 | -9/Materials | Discovered new exit (range 8) 373 | -9/Materials | Entered Mines 374 | -9/Mines | Assembled infested the area 378 | -9/Mines | Met a Derelict bent on vengeance 381 | -9/Mines | A Derelict revealed a hidden shortcut to a safe place 384 | -9/Mines | Entered Zion 468 | -7/Zion | Discovered new exit (range 8) 494 | -7/Zion | Acquired unknown access codes intercepted by a Zionite 543 | -7/Zion | Learned Factory non-interactive machine intel 577 | -7/Zion | Found Prototype Processor 577 | -7/Zion | Identified Exp. Targeting Computer 597 | -7/Zion | Found Prototype Processor 597 | -7/Zion | Identified Exp. Terrain Scan Processor 600 | -7/Zion | Found Prototype Processor 600 | -7/Zion | Identified Exp. Core Analyzer 602 | -7/Zion | Found Prototype Processor 602 | -7/Zion | Identified Exp. Signal Interpreter 692 | -7/Zion | Imprinted 694 | -7/Zion | Declared Zion's savior 870 | -7/Zion | Build established: Hacker-Mutant 917 | -7/Zion | Gained Derelict followers 1012 | -7/Zion | Learned Factory emergency access door positions 1055 | -7/Zion | Identified exit to Proximity Caves 1129 | -7/Zion | Entered Proximity Caves 1129 | -6/Proximity Caves | Accompanied by 6 allies 1228 | -6/Proximity Caves | Spotter reported a threat 1276 | -6/Proximity Caves | Build established: Mutant 1400 | -6/Proximity Caves | Discovered new exit (range 6) 1402 | -6/Proximity Caves | Identified exit to Factory 1406 | -6/Proximity Caves | Entered Factory 1406 | -6/Factory | Evolved 6 slots: Utility x6 1408 | -6/Factory | Loaded intel: 191 non-interactive machine locations 1688 | -6/Factory | Discovered new exit (range 16) 1693 | -6/Factory | Core integrity fell below 50% 1697 | -6/Factory | Identified exit to Factory 1698 | -6/Factory | Entered another Factory area 1698 | -5/Factory | Evolved 2 slots: Utility x2 1699 | -5/Factory | Identified exit to Extension 1702 | -5/Factory | Lost 4 parts (4u) 1715 | -5/Factory | Retrieved Zion intel report: Active Terminals 1791 | -5/Factory | Assembled infested ambush trap array 1860 | -5/Factory | Core integrity fell below 50% 1912 | -5/Factory | Core integrity fell below 20% 1928 | -5/Factory | Destroyed by S-27 Virus with Autogun Last Messages --------------- 01865_ Slug penetrates A-15 Conveyor. 01871_ Acquired Lance. 01873_ Penetrated by Slug. 01876_ Slug penetrates Wall. 01883_ Critical hit (Burn: +37). 01896_ Triggered Segregator Trap. 01896_ Arcs of energy rise from the floor. 01896_ Broken Exp. Signal Interpreter blown off. 01908_ O-16 Technician: "IFF HANDSHAKE FAILED. SECURING TERMINAL." 01913_ K-01 Serf destroyed. 01914_ Detecting system override signal. 01915_ ALERT: Suspicious activity at Terminal F007. Dispatching Investigation squad. 01915_ O-16 Technician resets terminal and reports anomaly. 01915_ O-16 Technician locks terminal. 01920_ Slug penetrates Terminal. 01920_ Terminal disabled. 01920_ Slug penetrates Wall. 01924_ Slug penetrates Power Conduit. 01926_ Penetrated by Slug. Map ----- +----------------------------------------------------+ | ??????????# #?????????????############ """ "" | | ??????????# #?????????????# """ "" | | ??????????# #?????????????# """ "" | | ??????????# #?????????????# | | ??????????# #?????????????# | | ??????????# #?????????????# | | ??????????# #?????????????# # | | ??????????# #?????????????# # | | ??????????# #?????????????# ############ | | ??????????# #?????????????# #??????????# | | ??????????# #?????????????# #??????????# | | ##????????# #??####+####### #??????????# | | ########## #### #??????????# | | ^ #??????????# | | ^^ #??????????# | | #??????????# | | ########## #??????????# | | ##????????# #??????????# | | ??????????########## #??????????# | | ???????????????????# ############??????????# | | ???????????????????# #?????????????????????? | | ???????????????????# #?????????????????????? | | ######??############ k #?????????????????????? | | #??# h #?????????????????????? | | #??# +?????????????????????? | | #??# s @ #?????????????????????? | | #??# ss #?????????????????????? | | #??# " " #?????????????????????? | | #??# " " #?????????????????????? | | #??# " " s #?????????????????????? | | %= #??# " " #######?????????????????????? | | #??# " " #???????????????????????????? | | #??# " " #???????????????????????????? | | #### " " #???????????????????????????? | | " " #???????????????????????????? | | " " " " #???????????????????????????? | | "" #???????????????????????????? | | #???????????????????????????? | | + #????????????????????? | | #### # #????????????????????? | | #??? # #????????????????????? | | #"##+############??? #?""" #????????????????????? | | ??????????????????#??"" #????????????????????? | | ??????????????????????? #????????????????????? | | ??????????????????????????????????????????????? | | ??????????????????????????????????????????????? | | ??????????????????????????????????????????????? | | ??????????????????????????????????????????????? | | ???????????????????????????????????????????????? | | ????????????????????????????????????????????????? | +----------------------------------------------------+ Best States ------------- Heat Dissipation 40 Energy Generation 5 Energy Capacity 100 Matter Stores 300 Matter Capacity 300 Sight Range 16 Terrain Scan Density 10 Armor Coverage 150 Evasion (%) 50 Offensive Hacking 11 Defensive Hacking 14 Authchip Count 1 Item Schematics ----------------- None Robot Schematics ------------------ None Fabricated ------------ Nothing Alien Tech Used ----------------- None Achievements -------------- None Challenges ------------ None Game ------ Seed GuidanceMappingVibroblade Manual? 0 Play Time 00:30:22 Cumulative 87.5 hours Start 2023.04.09 @ 17:44:22 End 2023.04.09 @ 19:25:46 Sessions 3 Manual Loads 0 Difficulty Rogue Special Mode None Game No. 109 Rogue 109 Adventurer 0 Explorer 0 Win Type - Total 2 Types 2/0/0/0/0/0/0/0/0 Lore% 53 Gallery% 54 Achievement% 45 Wizard Run 0 Options --------- ASCII 0 Keyboard 0 Movement Arrows Keybinds 0 Fullscreen 1 Font 12/Smallcaps Map View 83x54 Tactical HUD 1 Map Filters NONE Filters NONE Steam 1 RUN: 7f45a378-0380-45d6-8f09-7fddad3b54a8